bitfinex-derivatives/quotes_SOLF0:USTF0_20240905
["timestamp","ask_amount","ask_price","bid_price","bid_amount"]
[1725511495506,0.04948197,133.01,132.99,3.80697168]
[1725511497511,3.80838197,133.01,132.99,0.04767168]
[1725511497717,0.04948197,133.01,132.99,0.04767168]
[1725511498217,3.7592,133.0,132.99,0.04767168]
[1725511504113,0.04948197,133.01,132.99,9.30767168]
[1725511505019,0.04948197,133.01,133.0,9.26]
[1725511506519,0.04948197,133.01,132.99,0.04767168]
[1725511507023,3.80848197,133.01,132.99,0.04767168]
[1725511508223,0.04948197,133.01,132.99,3.80707168]
[1725511508810,0.04948197,133.01,132.99,0.04767168]
[1725511509417,0.04948197,133.01,132.99,3.80707168]
[1725511509815,0.04948197,133.01,132.99,0.04767168]
[1725511510116,3.80838197,133.01,132.99,0.04767168]
[1725511510321,0.04948197,133.01,132.99,0.04767168]
[1725511510718,0.04948197,133.01,133.0,9.26]
[1725511515223,0.04948197,133.01,133.0,13.0192]
[1725511516324,13.41950095,133.12,133.0,9.26]
[1725511516522,0.27637774,133.11,133.07,9.26]
[1725511517215,0.27637774,133.11,133.08,0.05721423]
[1725511517416,23.83689507,133.18,133.09,9.26]
[1725511517417,22.67950095,133.18,133.09,9.26]
[1725511517626,22.67950095,133.18,133.12,0.05707365]
[1725511517627,1.68120631,133.17,133.12,0.05707365]
[1725511517922,5.19512252,133.17,133.12,0.05707365]
[1725511518132,17.17570167,133.24,133.13,9.26]
[1725511518427,4.49858127,133.23,133.17,0.05428059]
[1725511518627,0.27618127,133.22,133.17,0.05428059]
[1725511518926,3.7541,133.18,133.17,0.05428059]
[1725511519117,9.26,133.19,133.06,1.312]
[1725511519322,4.2224,133.23,133.1,9.26]
[1725511519323,0.27618172,133.18,133.1,9.26]
[1725511519529,3.7554,133.14,133.11,9.26]
[1725511519827,2.7948,133.23,133.13,9.26]
[1725511520025,3.7546,133.17,133.13,23.09]
[1725511520322,0.04742506,133.16,133.14,0.05494235]
[1725511520531,0.05585197,133.16,133.14,0.04867633]
[1725511520829,2.7948,133.23,133.15,23.09]
[1725511521324,2.7948,133.23,133.17,3.7543]
[1725511521529,6.53315637,133.23,133.17,3.83338341]
[1725511521726,6.53315637,133.23,133.15,23.09]
[1725511521927,3.753,133.22,133.19,0.05137831]
[1725511522227,3.74474158,133.22,133.13,3.66624098]
[1725511522423,2.7948,133.23,133.12,23.09]
[1725511522626,0.27610779,133.22,133.12,23.09]
[1725511522824,3.97427485,133.22,133.13,3.78117487]
[1725511523020,3.69816706,133.22,133.13,3.78117487]
[1725511523220,3.69816706,133.22,133.12,23.09]
[1725511523221,3.7544,133.17,133.16,0.05339796]
[1725511524132,3.7558,133.12,133.08,23.09]
[1725511524327,3.71046502,133.15,133.08,23.09]
[1725511524632,3.7557,133.13,133.08,26.93606716]
[1725511525131,0.04818387,133.12,133.09,0.05258499]
[1725511525833,0.04818387,133.12,133.1,23.09]
[1725511526426,0.04818387,133.12,133.11,3.7561]
[1725511526730,3.7546,133.17,133.1,23.09]
[1725511526929,1.4277,133.2,133.1,23.09]
[1725511527233,3.7549,133.15,133.11,3.756]
[1725511527732,0.05561816,133.14,133.12,0.0521411]
[1725511528939,3.81091816,133.14,133.12,0.0521411]
[1725511531339,0.05561816,133.14,133.12,0.0521411]
[1725511533545,3.81081816,133.14,133.12,0.0521411]
[1725511533744,0.05561816,133.14,133.12,0.0521411]
[1725511534845,0.05561816,133.14,133.12,3.8078411]
[1725511535647,0.05561816,133.14,133.12,26.8978411]
[1725511536442,0.05561816,133.14,133.12,3.8078411]
[1725511536644,0.05561816,133.14,133.12,26.8978411]
[1725511536845,0.05561816,133.14,133.12,23.1421411]
[1725511537751,4.0864,133.26,133.15,23.09]
[1725511537948,4.0864,133.26,133.13,2.7564]
[1725511537949,3.97674893,133.25,133.18,23.09]
[1725511538140,3.7532,133.22,133.18,26.8441]
[1725511538747,3.7532,133.22,133.19,0.05145956]
[1725511539148,3.7521,133.26,133.19,0.05145956]
[1725511539341,235.4967,133.39,133.22,23.09]
[1725511539342,5.17600504,133.3,133.22,23.09]
[1725511539549,1.3521,133.3,133.25,0.04996742]
[1725511539844,3.7515,133.28,133.25,0.04996742]
[1725511540050,1.3521,133.3,133.25,0.04996742]
[1725511540251,1.3521,133.3,133.26,3.7516]
[1725511540749,228.0,133.39,133.26,23.09]
[1725511540953,228.0,133.39,133.31,0.04884981]
[1725511540954,1.3521,133.37,133.31,0.04884981]
[1725511541251,7.5704098,133.37,133.31,0.04884981]
[1725511541544,3.8214098,133.37,133.31,0.04884981]
[1725511542348,3.7493,133.35,133.31,0.04884981]
[1725511543052,2.7351,133.38,133.31,3.79924981]
[1725511543451,3.7492,133.36,133.31,0.04884981]
[1725511543849,1.3521,133.4,133.32,23.09]
[1725511544050,1.3521,133.4,133.35,0.05019792]
[1725511544250,23.09,133.45,133.36,0.05740174]
[1725511544445,3.748,133.4,133.39,0.05249675]
[1725511547348,3.7477,133.41,133.39,0.05249675]
[1725511547547,2.7898,133.45,133.39,0.05249675]
[1725511548560,3.7476,133.42,133.39,0.05249675]
[1725511548955,3.73424842,133.44,133.39,0.05249675]
[1725511549254,2.7898,133.45,133.39,0.05249675]
[1725511549953,3.74915635,133.44,133.39,0.05249675]
[1725511550159,2.7898,133.45,133.39,0.05249675]
[1725511550857,25.8798,133.45,133.39,0.05249675]
[1725511551449,3.77690288,133.44,133.39,0.05249675]
[1725511551649,3.7479,133.4,133.39,0.05249675]
[1725511552852,3.7489,133.37,133.33,23.09]
[1725511553056,3.7489,133.37,133.28,2.6713]
[1725511553057,23.09,133.4,133.31,23.09]
[1725511553656,3.7495,133.35,133.31,23.09]
[1725511553857,0.05560156,133.34,133.32,0.05348277]
[1725511554062,0.05379906,133.34,133.32,0.05348277]
[1725511555550,3.80359906,133.34,133.32,0.05348277]
[1725511555959,0.05379906,133.34,133.32,0.05348277]
[1725511556160,3.7499,133.33,133.32,0.05348277]
[1725511556358,0.05379906,133.34,133.32,0.05348277]
[1725511556661,25.8798,133.45,133.33,23.09]
[1725511556856,25.8798,133.45,133.35,23.09]
[1725511557158,25.8798,133.45,133.35,26.8393]
[1725511557159,3.7483,133.39,133.35,26.8393]
[1725511557360,3.7483,133.39,133.35,30.64406654]
[1725511557658,3.7483,133.39,133.36,0.05567357]
[1725511557860,3.7487,133.37,133.36,0.05567357]
[1725511559065,3.7485,133.38,133.36,0.05567357]
[1725511559457,1.4076,133.42,133.36,0.05567357]
[1725511560060,3.7481,133.4,133.36,0.05567357]
[1725511560454,1.4076,133.42,133.36,0.05567357]
[1725511561564,3.7484,133.39,133.36,0.05567357]
[1725511563159,3.7485,133.38,133.36,0.05567357]
[1725511566261,3.7487,133.37,133.36,0.05567357]
[1725511568670,0.05362109,133.36,133.28,1.3143]
[1725511568872,26.76969101,133.37,133.27,24.4622]
[1725511569172,3.7509,133.3,133.27,23.09]
[1725511569762,0.05547395,133.3,133.27,23.14052087]
[1725511570270,3.80637395,133.3,133.27,23.14052087]
[1725511570566,0.05547395,133.3,133.27,23.14052087]
[1725511570974,0.05547395,133.3,133.28,3.8290688]
[1725511571165,0.05547395,133.3,133.27,23.14052087]
[1725511571371,3.7512,133.29,133.27,23.14052087]
[1725511571774,3.7523,133.25,133.2,23.09]
[1725511572368,253.3516,133.36,133.24,23.09]
[1725511572369,3.7512,133.29,133.24,23.09]
[1725511572778,0.05556486,133.28,133.25,0.05422683]
[1725511573467,3.80696486,133.28,133.25,0.05422683]
[1725511574870,0.05556486,133.28,133.26,28.82]
[1725511576377,0.05556486,133.28,133.25,0.05422683]
[1725511577776,3.7518,133.27,133.25,0.05422683]
[1725511578877,3.80696486,133.28,133.25,0.05422683]
[1725511579078,0.05556486,133.28,133.25,0.05422683]
[1725511579285,0.05556486,133.28,133.26,28.82]
[1725511580084,0.05556486,133.28,133.26,32.5718]
[1725511580379,0.05556486,133.28,133.26,28.82]
[1725511580579,0.05556486,133.28,133.27,7.4350785]
[1725511580885,4.1221,133.36,133.26,28.82]
[1725511581181,3.7499,133.34,133.3,3.7507]
[1725511581381,4.1221,133.36,133.3,3.7507]
[1725511581884,0.05253847,133.34,133.32,0.05087264]
[1725511582380,3.7499,133.33,133.32,0.05087264]
[1725511585087,32.59147572,133.34,133.21,4.0261]
[1725511585274,28.82,133.32,133.21,4.0261]
[1725511585476,3.7519,133.26,133.22,3.71586487]
[1725511585677,3.7519,133.26,133.21,4.0261]
[1725511585894,3.7519,133.26,133.22,3.72786847]
[1725511586077,0.05555461,133.25,133.23,0.04841819]
[1725511587189,0.05555461,133.25,133.23,3.80091819]
[1725511587389,0.05555461,133.25,133.23,0.04841819]
[1725511589283,0.05555461,133.25,133.23,3.80101819]
[1725511590287,0.05555461,133.25,133.23,0.04841819]
[1725511591991,0.05555461,133.25,133.23,3.80091819]
[1725511592199,32.59147572,133.34,133.24,28.82]
[1725511592200,3.77147572,133.34,133.24,28.82]
[1725511592389,4.1221,133.36,133.24,28.82]
[1725511592590,0.27584245,133.35,133.24,28.82]
[1725511592791,3.81990173,133.34,133.24,28.82]
[1725511593092,3.81990173,133.34,133.27,28.82]
[1725511593291,0.0478565,133.32,133.29,0.04961854]
[1725511593496,3.7981565,133.32,133.29,0.04961854]
[1725511594294,3.7505,133.31,133.29,0.04961854]
[1725511596298,0.0478565,133.32,133.29,28.86961854]
[1725511596895,0.0478565,133.32,133.31,3.7504]
[1725511597698,0.0478565,133.32,133.31,32.5704]
[1725511597899,1.665937,133.4,133.31,28.82]
[1725511598103,3.7488,133.37,133.33,28.82]
[1725511598294,3.7488,133.37,133.34,3.7496]
[1725511598491,3.7484,133.39,133.33,28.82]
[1725511598805,3.7484,133.39,133.35,0.05272707]
[1725511599100,3.7484,133.39,133.35,3.80172707]
[1725511599300,3.7484,133.39,133.35,0.05272707]
[1725511600093,1.3902,133.4,133.36,3.7489]
[1725511600304,1.3902,133.4,133.35,0.05272707]
[1725511600601,3.7479,133.4,133.36,3.7489]
[1725511601194,3.7479,133.4,133.36,7.40578995]
[1725511601899,2.7091,133.43,133.36,3.65688995]
[1725511602101,2.7091,133.43,133.38,0.05298209]
[1725511602400,2.7091,133.43,133.39,3.7481]
[1725511602401,6.4563,133.43,133.39,3.7481]
[1725511602607,3.7472,133.43,133.39,3.7481]
[1725511603005,1.3837,133.45,133.4,3.68672346]
[1725511603305,1.3837,133.45,133.41,0.05177264]
[1725511603602,5.1304,133.45,133.41,3.79917264]
[1725511603996,1.3837,133.45,133.41,3.79917264]
[1725511604195,3.7468,133.44,133.41,0.05177264]
[1725511605502,3.7471,133.43,133.41,0.05177264]
[1725511605903,1.3837,133.45,133.41,0.05177264]
[1725511606103,3.7473,133.42,133.41,0.05177264]
[1725511628121,7.72095029,133.47,133.41,0.05177264]
[1725511628427,2.7091,133.47,133.42,26.87894429]
[1725511629225,3.7466,133.45,133.42,26.87894429]
[1725511630237,2.7091,133.47,133.42,30.62604429]
[1725511630431,3.78383444,133.49,133.42,26.87894429]
[1725511630631,3.7462,133.46,133.44,0.05471059]
[1725511632832,3.7462,133.46,133.44,23.09471059]
[1725511634444,2.6748,133.51,133.44,26.84121059]
[1725511634630,2.6748,133.51,133.45,23.04]
[1725511635032,6.50022538,133.51,133.45,26.84181395]
[1725511635338,2.6748,133.51,133.45,30.58811395]
[1725511635539,3.7455,133.49,133.45,30.58811395]
[1725511636242,2.6748,133.51,133.46,3.7461]
[1725511636442,2.6748,133.51,133.47,0.04919014]
[1725511636735,3.7454,133.49,133.47,0.04919014]
[1725511637535,3.7451,133.5,133.47,0.04919014]
[1725511638036,3.7451,133.5,133.47,7.49290922]
[1725511638239,3.7445,133.52,133.47,23.08919014]
[1725511638634,3.7445,133.52,133.48,3.7455]
[1725511638941,3.7445,133.52,133.48,7.54487045]
[1725511640230,2.7025,133.55,133.48,3.79937045]
[1725511640434,7.67925923,133.55,133.5,0.04898573]
[1725511640738,3.7448,133.51,133.5,0.04898573]
[1725511644037,23.04,133.53,133.44,23.04]
[1725511644339,0.2754892,133.52,133.42,23.04]
[1725511644539,23.04,133.51,133.42,23.04]
[1725511644742,0.27552453,133.5,133.42,23.04]
[1725511644936,0.27552453,133.5,133.4,23.04]
[1725511645140,0.0475639,133.46,133.44,0.05517149]
[1725511645441,0.0475639,133.46,133.4,23.04]
[1725511645845,3.7475,133.42,133.4,23.04]
[1725511646248,3.71300445,133.46,133.37,23.04]
[1725511646546,3.748,133.4,133.37,23.04]
[1725511646742,3.80177091,133.4,133.37,23.08812609]
[1725511646942,0.05377091,133.4,133.37,23.08812609]
[1725511647440,0.05377091,133.4,133.39,23.04]
[1725511648245,0.05377091,133.4,133.37,23.08812609]
[1725511648643,0.05377091,133.4,133.37,0.04812609]
[1725511651144,3.7482,133.39,133.37,0.04812609]
[1725511651446,0.05377091,133.4,133.37,0.04812609]
[1725511651843,3.7483,133.39,133.37,0.04812609]
[1725511652640,3.80167091,133.4,133.37,0.04812609]
[1725511653042,0.05377091,133.4,133.37,0.04812609]
[1725511653236,0.05377091,133.4,133.37,23.08812609]
[1725511653744,0.05377091,133.4,133.39,23.04]
[1725511657247,0.05377091,133.4,133.37,0.04812609]
[1725511658054,3.7484,133.39,133.37,0.04812609]
[1725511658748,1.3215,133.47,133.37,0.04812609]
[1725511658749,1.3215,133.47,133.37,23.08812609]
[1725511659053,3.73425314,133.55,133.46,23.04]
[1725511659350,251.06,133.56,133.38,2.7364]
[1725511659351,0.02,133.56,133.52,23.04]
[1725511659544,0.02,133.56,133.54,23.04]
[1725511659751,0.04896448,133.59,133.56,0.05546488]
[1725511659952,0.04896448,133.59,133.58,23.04]
[1725511660150,1.2952,133.68,133.58,23.04]
[1725511660347,1.2952,133.68,133.64,26.7811]
[1725511660548,23.04,133.72,133.64,26.7811]
[1725511660549,3.71057166,133.69,133.64,26.7811]
[1725511660748,27.1386,133.74,133.64,23.04]
[1725511661051,27.1386,133.74,133.68,0.05278553]
[1725511661052,0.27512787,133.73,133.68,0.05278553]
[1725511661252,0.27512787,133.73,133.68,23.09278553]
[1725511661548,1.3323,133.79,133.7,23.04]
[1725511661747,0.27498831,133.78,133.73,0.04743961]
[1725511663657,29.01498831,133.78,133.66,28.74]
[1725511663860,28.74,133.75,133.64,28.74]
[1725511664151,28.74,133.75,133.62,3.77860882]
[1725511664152,28.74,133.73,133.62,28.74]
[1725511664353,28.74,133.73,133.6,28.74]
[1725511664650,0.04743961,133.68,133.65,0.05667739]
[1725511668361,0.04743961,133.68,133.57,28.74]
[1725511668566,30.0991,133.69,133.57,28.74]
[1725511668863,3.7409,133.66,133.58,3.7426]
[1725511669462,0.05294023,133.63,133.61,0.04949339]
[1725511674855,0.05294023,133.63,133.61,3.79129339]
[1725511676369,0.05294023,133.63,133.61,0.04949339]
[1725511679563,0.05294023,133.63,133.61,3.79149339]
[1725511680367,0.05294023,133.63,133.61,0.04949339]
[1725511682268,0.05294023,133.63,133.62,3.7417]
[1725511683466,0.05294023,133.63,133.62,32.4817]
[1725511687074,3.79976968,133.71,133.62,28.74]
[1725511687372,3.7402,133.68,133.63,3.7413]
[1725511687972,0.05117677,133.67,133.64,0.05729078]
[1725511688175,0.05117677,133.67,133.64,3.79829078]
[1725511688980,0.05117677,133.67,133.65,3.7408]
[1725511689177,1.3258,133.77,133.66,32.4565095]
[1725511689369,1.3258,133.77,133.68,28.74]
[1725511690375,3.7382,133.75,133.71,0.05375829]
[1725511690876,3.7384,133.74,133.71,0.05375829]
[1725511691281,1.3779,133.78,133.6,1.3715]
[1725511691282,28.74,133.75,133.6,1.3715]
[1725511691470,1.3779,133.78,133.39,18.7401]
[1725511691471,28.74,133.68,133.44,7.96839766]
[1725511691677,28.74,133.68,133.56,28.74]
[1725511691678,5.15632942,133.67,133.56,28.74]
[1725511691975,1.3449,133.67,133.56,36.31659539]
[1725511692482,0.05102646,133.63,133.6,0.05235662]
[1725511692679,3.79262646,133.63,133.6,0.05235662]
[1725511692979,0.05102646,133.63,133.6,0.05235662]
[1725511693174,3.7419,133.62,133.6,0.05235662]
[1725511693379,0.05102646,133.63,133.6,0.05235662]
[1725511696171,0.05102646,133.63,133.61,3.742]
[1725511697480,0.05102646,133.63,133.6,0.05235662]
[1725511698280,0.05102646,133.63,133.61,3.7419]
[1725511698579,2.8445,133.71,133.61,28.74]
[1725511698783,3.7397,133.7,133.64,28.74]
[1725511699282,3.7393,133.71,133.66,3.7404]
[1725511699683,3.7393,133.71,133.67,0.05253889]
[1725511699880,3.7393,133.71,133.67,3.79283889]
[1725511700478,3.739,133.72,133.67,3.79283889]
[1725511700680,1.3395,133.76,133.67,0.05253889]
[1725511700875,1.3395,133.76,133.7,0.05168785]
[1725511701678,3.7387,133.73,133.7,0.05168785]
[1725511704783,3.7384,133.74,133.7,3.79118785]
[1725511705485,28.74,133.75,133.7,0.05168785]
[1725511705676,1.3607,133.74,133.7,0.05168785]
[1725511706081,3.7392,133.71,133.7,0.05168785]
[1725511707480,3.739,133.72,133.7,0.05168785]
[1725511707684,1.3607,133.74,133.7,0.05168785]
[1725511708579,3.7391,133.72,133.7,0.05168785]
[1725511708781,1.3607,133.74,133.7,0.05168785]
[1725511708975,1.3615,133.79,133.7,28.79168785]
[1725511709174,1.3615,133.79,133.73,0.0485854]
[1725511709382,3.7373,133.78,133.73,3.7870854]
[1725511710283,3.7375,133.77,133.73,3.7870854]
[1725511711485,5.09097482,133.8,133.73,0.0485854]
[1725511711683,33.83097482,133.8,133.73,0.0485854]
[1725511712489,3.738,133.76,133.73,0.0485854]
[1725511713487,29.0150222,133.75,133.55,7.4874]
[1725511713785,29.0150222,133.75,133.61,30.1598]
[1725511713786,28.74,133.73,133.61,30.1598]
[1725511713978,28.74,133.73,133.61,33.86293552]
[1725511714179,1.4036,133.72,133.61,33.86293552]
[1725511714381,3.78992579,133.68,133.66,0.05420338]
[1725511714581,0.04972579,133.68,133.66,0.05420338]
[1725511714987,3.79140056,133.68,133.48,3.77871735]
[1725511715289,1.3238,133.67,133.56,28.74]
[1725511715590,1.3238,133.67,133.57,1.4198]
[1725511715888,28.74,133.71,133.59,28.74]
[1725511716080,30.0689,133.71,133.61,0.05513685]
[1725511716292,3.79313416,133.67,133.65,0.05442339]
[1725511716590,0.05263416,133.67,133.65,0.05442339]
[1725511720193,3.79313416,133.67,133.65,0.05442339]
[1725511721182,0.05263416,133.67,133.65,0.05442339]
[1725511722582,0.05263416,133.67,133.66,3.7406]
[1725511722789,0.05263416,133.67,133.65,0.05442339]
[1725511723297,0.05263416,133.67,133.65,3.79522339]
[1725511724094,0.05263416,133.67,133.66,3.7406]
[1725511724691,4.0735,133.77,133.65,31.44132339]
[1725511724991,0.27501388,133.76,133.67,28.74]
[1725511725192,3.7386,133.74,133.67,32.41993713]
[1725511725588,3.7386,133.74,133.71,3.7391]
[1725511725785,0.04926993,133.74,133.71,3.79080088]
[1725511728089,0.04926993,133.74,133.72,3.7389]
[1725511728292,3.7389,133.72,133.71,0.05170088]
[1725511734796,0.04926993,133.74,133.71,0.05170088]
[1725511735392,3.7388,133.73,133.71,0.05170088]
[1725511735599,0.04926993,133.74,133.71,0.05170088]
[1725511736194,3.78776993,133.74,133.71,0.05170088]
[1725511736699,0.04926993,133.74,133.71,0.05170088]
[1725511736896,0.04926993,133.74,133.71,3.74896726]
[1725511737798,0.04926993,133.74,133.71,0.05170088]
[1725511737999,0.04926993,133.74,133.71,3.77626854]
[1725511738198,0.04926993,133.74,133.71,0.05170088]
[1725511738591,0.04926993,133.74,133.72,3.7388]
[1725511739800,0.04926993,133.74,133.71,7.50863671]
[1725511740199,0.04926993,133.74,133.71,0.05170088]
[1725511740804,3.7389,133.72,133.71,0.05170088]
[1725511741100,0.04926993,133.74,133.71,0.05170088]
[1725511741601,3.7388,133.73,133.71,0.05170088]
[1725511742500,3.78766993,133.74,133.71,0.05170088]
[1725511742702,0.04926993,133.74,133.71,0.05170088]
[1725511743004,3.7389,133.72,133.71,0.05170088]
[1725511745509,0.04926993,133.74,133.71,0.05170088]
[1725511746106,0.04926993,133.74,133.71,3.79070088]
[1725511746604,0.04926993,133.74,133.72,3.7389]
[1725511746809,0.04926993,133.74,133.71,3.86695892]
[1725511747002,0.04926993,133.74,133.71,0.05170088]
[1725511747403,0.04926993,133.74,133.72,3.7389]
[1725511747712,0.04926993,133.74,133.71,3.73644283]
[1725511747908,0.04926993,133.74,133.71,0.05170088]
[1725511748106,0.04926993,133.74,133.71,1.41410088]
[1725511748408,0.04926993,133.74,133.72,3.70344053]
[1725511749310,0.04926993,133.74,133.73,3.7386]
[1725511753613,28.74,133.83,133.73,28.74]
[1725511753812,31.5018,133.85,133.75,28.74]
[1725511754013,0.27484929,133.84,133.73,30.0646]
[1725511754224,0.27484929,133.84,133.75,3.7381]
[1725511754520,0.27484929,133.84,133.73,30.0646]
[1725511754714,1.3582,133.85,133.79,3.7369]
[1725511754915,1.3582,133.85,133.78,0.05045947]
[1725511755110,1.4036,133.89,133.78,0.05045947]
[1725511755314,0.27477964,133.88,133.82,0.05009414]
[1725511755715,3.7356,133.84,133.82,0.05009414]
[1725511756718,28.74,133.87,133.82,0.05009414]
[1725511756922,0.27477192,133.86,133.82,0.05009414]
[1725511757419,4.10203853,133.86,133.82,0.05009414]
[1725511757617,0.27477192,133.85,133.82,0.05009414]
[1725511758018,28.74,133.83,133.6,7.4842]
[1725511758323,28.74,133.79,133.67,31.4587]
[1725511758528,28.74,133.79,133.68,7.44655504]
[1725511758721,28.74,133.79,133.67,31.4587]
[1725511758919,0.05286565,133.74,133.72,0.05615085]
[1725511759223,0.05371066,133.74,133.72,0.05615085]
[1725511761617,3.79211066,133.74,133.72,0.05615085]
[1725511761817,0.05371066,133.74,133.72,0.05615085]
[1725511764228,3.79211066,133.74,133.72,0.05615085]
[1725511765333,3.7386,133.73,133.72,0.05615085]
[1725511765727,0.05371066,133.74,133.72,0.05615085]
[1725511766523,3.7386,133.73,133.72,0.05615085]
[1725511767032,28.74,133.73,133.63,2.7545]
[1725511767332,3.7399,133.69,133.65,3.7408]
[1725511767734,3.7399,133.69,133.63,6.45634755]
[1725511768128,0.04764179,133.67,133.65,0.05650119]
[1725511769330,0.04764179,133.67,133.65,3.79740119]
[1725511769934,0.04764179,133.67,133.66,3.7406]
[1725511773438,1.383,133.74,133.65,28.79650119]
[1725511773640,1.383,133.74,133.65,28.74]
[1725511774234,3.7391,133.72,133.68,3.7399]
[1725511774435,0.0527384,133.71,133.69,0.05481255]
[1725511775242,28.74,133.7,133.49,117.0265037]
[1725511775448,28.74,133.62,133.52,1.3728]
[1725511775741,3.73316876,133.64,133.56,3.7434]
[1725511775935,28.74,133.65,133.52,30.1128]
[1725511776141,5.18901843,133.64,133.52,33.79846726]
[1725511776339,0.05213296,133.6,133.57,0.05033367]
[1725511779047,0.05213296,133.6,133.57,3.79323367]
[1725511779244,13.32105921,133.77,133.58,57.48]
[1725511779448,1.3227,133.74,133.61,28.74]
[1725511779747,1.3227,133.74,133.63,3.7414]
[1725511779748,3.74,133.69,133.63,3.7414]
[1725511780249,0.05091166,133.67,133.65,0.05608234]
[1725511780451,0.05744932,133.67,133.65,0.05623097]
[1725511783548,0.05744932,133.67,133.65,3.79703097]
[1725511784737,0.05744932,133.67,133.66,3.7406]
[1725511785548,0.05744932,133.67,133.65,32.53703097]
[1725511785743,0.05744932,133.67,133.65,3.79703097]
[1725511786249,0.05744932,133.67,133.65,0.05623097]
[1725511788250,0.05744932,133.67,133.65,3.79713097]
[1725511790047,0.05744932,133.67,133.66,3.7406]
[1725511790553,0.05744932,133.67,133.65,0.05623097]
[1725511792453,0.05744932,133.67,133.65,3.79683097]
[1725511792648,0.05744932,133.67,133.65,0.05623097]
[1725511793247,0.05744932,133.67,133.66,3.7406]
[1725511793851,85.69490556,133.87,133.66,28.74]
[1725511794149,13.31907761,133.87,133.77,28.74]
[1725511794351,228.0,133.94,133.73,28.74]
[1725511794352,4.1284,133.88,133.82,28.74]
[1725511794551,45.82002969,133.93,133.83,3.73439018]
[1725511794755,238.41739412,134.0,133.89,3.7339]
[1725511794756,0.27470046,133.92,133.89,3.7339]
[1725511795051,11.53309872,133.97,133.89,0.05340419]
[1725511795258,0.27461307,133.96,133.89,32.54200211]
[1725511795456,28.74,134.01,133.92,3.7333]
[1725511795653,28.74,134.01,133.95,0.0563807]
[1725511795654,0.27456039,134.0,133.95,0.0563807]
[1725511796260,3.93417304,134.0,133.95,0.0563807]
[1725511796453,0.27456039,133.99,133.95,0.0563807]
[1725511796861,28.74,134.01,133.95,0.0563807]
[1725511797156,0.27453343,134.0,133.95,0.0563807]
[1725511797359,4.00563343,134.0,133.95,0.0563807]
[1725511797554,0.27453343,133.99,133.95,0.0563807]
[1725511797948,4.00613343,133.99,133.95,0.0563807]
[1725511798149,29.01453697,133.98,133.87,28.74]
[1725511798355,28.74,133.98,133.87,28.74]
[1725511798961,1.4104,134.02,133.87,28.74]
[1725511798962,1.4104,134.02,133.91,28.74]
[1725511799261,0.05727176,133.98,133.95,3.78296331]
[1725511800761,0.05727176,133.98,133.95,0.05046331]
[1725511802464,0.05727176,133.98,133.95,3.78266331]
[1725511803364,0.05727176,133.98,133.95,0.05046331]
[1725511804565,28.74,134.01,133.87,28.74]
[1725511804755,28.74,134.01,133.87,32.49924128]
[1725511804958,3.732,133.97,133.9,3.7339]
[1725511805155,28.74,134.01,133.9,3.7339]
[1725511805556,0.05078282,133.97,133.94,0.04927574]
[1725511806253,0.05078282,133.97,133.96,3.7322]
[1725511806656,0.05078282,133.97,133.95,3.7324]
[1725511806854,0.05078282,133.97,133.94,28.78927574]
[1725511807368,0.05078282,133.97,133.96,3.7322]
[1725511807772,0.05078282,133.97,133.96,32.4722]
[1725511808963,0.05078282,133.97,133.96,28.74]
[1725511809575,0.05078282,133.97,133.96,32.4722]
[1725511810866,2.7322,134.04,133.96,28.74]
[1725511810867,3.73,134.04,133.96,28.74]
[1725511811067,2.7578,134.09,134.0,28.74]
[1725511811566,1.3307,134.11,134.02,28.74]
[1725511811770,1.3307,134.11,134.02,32.55485628]
[1725511811972,0.05699325,134.08,134.06,3.7293]
[1725511812268,0.05699325,134.08,134.05,28.79164368]
[1725511812463,0.05699325,134.08,134.05,32.52114368]
[1725511812965,0.05699325,134.08,134.05,28.79164368]
[1725511813171,0.05699325,134.08,134.05,0.05164368]
[1725511813470,3.7292,134.07,134.05,0.05164368]
[1725511813773,0.05699325,134.08,134.05,0.05164368]
[1725511814071,3.78589325,134.08,134.05,0.05164368]
[1725511814271,0.05699325,134.08,134.05,0.05164368]
[1725511815272,0.05699325,134.08,134.05,3.78134368]
[1725511815872,0.05699325,134.08,134.05,0.05164368]